Cogmind - Beta 16 @@@ ROGUE MODE // 2025.12.17 @ 20:56:57 Player: MrProgressor Result: Destroyed by B7-6G6(R) with Subdweller Beam Cannon Performance ------------- Evolutions (0) 0 Regions Visited (2) 400 Robots Destroyed (15) 75 Value Destroyed (434) 434 Prototype IDs (12) 240 Alien Tech Used (0) 0 Bonus (0) 0 TOTAL SCORE: 1149 Bonus ------- None Cogmind --------- Core Integrity 0/250 Matter 278/300 Energy 100/100 System Corruption 1% Temperature Cool (9) Movement Core (1550) Ox30 Location -10/Subcaves Parts ------- > --- POWER (1) -------- (None) > --- PROPULSION (2) --- (None) > --- UTILITY (2) ------ Huge Storage Unit Sensor Array > --- WEAPON (2) ------- Subdweller Beam Cannon Makeshift Spear > --- INVENTORY (25) --- Ion Engine Subdweller Power Source Improved Heat Sink Large Storage Unit Humpback Subdweller Optics Scrap Shield Scrap Shield Rainbow Chip Subdweller Laser Barrage Gun Barrage Gun Battle Cannon Grenade Launcher Shrapnel Trap Shrapnel Trap Piercing Trap Scrap Shield Fragment (49) Scrap Shield Fragment (49) Scrap Shield Fragment (48) Scrap Shield Fragment (48) Peak State ------------ > --- POWER ------------ Ion Engine > --- PROPULSION ------- Wheel Subdweller Monowheel > --- UTILITY ---------- Huge Storage Unit Improved Terrain Scanner > --- WEAPON ----------- Barrage Gun Barrage Gun > --- INVENTORY -------- Ion Engine Subdweller Power Source Wheel Wheel Subdweller Monowheel Improved Heat Sink Large Storage Unit Subdweller Optics Subdweller Optics Sensor Array Scrap Shield Scrap Shield Riot Gun Subdweller Laser Subdweller Beam Cannon Subdweller Machine Gun Battle Cannon Grenade Launcher Shrapnel Trap Piercing Trap Scrap Shield Fragment Scrap Shield Fragment Scrap Shield Fragment [Rating: 18] Favorites ----------- Power Ion Engine Engine Ion Engine Propulsion Wheel Wheel Wheel Utility Huge Storage Unit Device Improved Terrain Scanner Storage Huge Storage Unit Protection Light Armor Plating Weapon Barrage Gun Energy Gun Small Laser Energy Cannon Subdweller Beam Cannon Ballistic Gun Barrage Gun Ballistic Cannon Battle Cannon Piercing Weapon Makeshift Spear Build | -11 -10 -10 ------- Run | Yrd Mat Sub Slots Evolved . | . . . Power . | . . . Propulsion . | . . . Utility . | . . . Weapon . | . . . Parts Attached 30 | 8 2 20 Power 1 | 1 . . Engine 1 | 1 . . Core . | . . . Reactor . | . . . Propulsion 11 | 2 . 9 Treads . | . . . Leg . | . . . Wheel 11 | 2 . 9 Hover . | . . . Flight . | . . . Utility 8 | 3 2 3 Device 4 | 2 . 2 Storage 3 | 1 2 . Processor . | . . . Hackware . | . . . Protection 1 | . . 1 Artifact . | . . . Weapon 10 | 2 . 8 Energy Gun 2 | 1 . 1 Energy Cannon 2 | . . 2 Ballistic Gun 4 | 1 . 3 Ballistic Cannon 1 | . . 1 Launcher . | . . . Special Weapon . | . . . Impact Weapon . | . . . Slashing Weapon . | . . . Piercing Weapon 1 | . . 1 Special Melee Weapon . | . . . Unidentified Prototypes . | . . . Parts Lost 7 | . . 7 Power 1 | . . 1 Propulsion 4 | . . 4 Utility 1 | . . 1 Weapon 1 | . . 1 Highest Loss Streak 3 | . . 3 To Critical Strikes . | . . . Average Backups 15 | 5 9 16 Power 1 | 1 1 1 Propulsion 2 | 3 3 1 Utility 6 | . 2 7 Weapon 4 | . 1 5 Tool/Special . | . . . Unused Backups 23 | . 3 20 Power 4 | . 1 3 Propulsion 3 | . 2 1 Utility 11 | . . 11 Weapon 5 | . . 5 Tool/Special . | . . . Average Slot Usage (%) 99 | . 100 99 Engine 14 | . 14 14 Wheel 27 | . 28 27 Device 13 | . 14 13 Storage 14 | . 14 14 Energy Gun 2 | . 14 1 Energy Cannon 4 | . . 5 Ballistic Gun 16 | . 14 16 Piercing Weapon 4 | . . 4 Peak Build Rating 18 | 9 10 18 Average Rating 15 | 6 9 16 On Entrance 6 | . 9 10 Avg Prop Armor Cover (%) . | . . . Naked Turns . | . . . Heaviest Build 98 | 13 88 98 Greatest Support 40 | 26 26 40 Greatest Overweight (x) 9 | 1 3 9 Average Overweight (x) 2 | . . 2 Largest Inventory Capacity 25 | 8 25 25 Average Capacity 22 | 7 13 24 Most Carried 25 | 8 13 25 Average Carried 21 | 5 9 23 Final Capacity 25 | 8 15 25 Final Carried 24 | 8 13 24 Class Distribution -------------------- 76% | Mutant 23% | Scavenger-Mutant Dominant Class ---------------- Mutant | -10/Materials Mutant | -10/Subcaves Resources | -11 -10 -10 ----------- Run | Yrd Mat Sub Matter Collected 790 | 296 10 484 Remotely . | . . . Salvage Created 752 | 180 . 572 Parts 40 | 10 . 30 Haulers Intercepted . | . . . Recyclers Shooed . | . . . Parts Field Recycled . | . . . Retrieved Matter . | . . . Parts Self-Destructed 2 | . . 2 Prevented . | . . . Parts Restored . | . . . Kills | -11 -10 -10 ------- Run | Yrd Mat Sub Combat Hostiles Destroyed 10 | . . 10 Melee 1 | . . 1 Guns 5 | . . 5 Cannons 4 | . . 4 Classes Destroyed 4 | 2 . 2 Tunneler 4 | 4 . . Recycler 1 | 1 . . Cobbler 1 | . . 1 Subdweller 10 | . . 10 Best Kill Streak 3 | 3 . 2 Combat Bots Only 2 | . . 2 Max Kills in Single Turn 2 | 2 . 1 Gunslinging . | . . . Exploded . | . . . Melee 1 | . . 1 Uniques/NPCs Destroyed . | . . . Combat | -11 -10 -10 -------- Run | Yrd Mat Sub Hostile Shots Fired 53 | . . 53 Missed 14 | . . 14 Hits 39 | . . 39 Projectile 39 | . . 39 Critical Strikes 1 | . . 1 Damage Taken 1040 | . . 1040 Core 267 | . . 267 Absorbed by Shields . | . . . Core Remaining (%) 100 | 100 . . Volleys Fired 107 | 16 . 91 Largest 2 | 2 . 2 Hottest 140 | 60 . 140 Shots Fired 161 | 32 . 129 Gun 123 | 32 . 91 Cannon 38 | . . 38 Launcher . | . . . Special . | . . . Kinetic 96 | 16 . 80 Thermal 65 | 16 . 49 Explosive . | . . . Electromagnetic . | . . . Robot Hit Streak 14 | 13 . 14 Robot Miss Streak 2 | 2 . 2 Penetration Max . | . . . Secondary Targets . | . . . Shots Hit Robots 100 | 24 . 76 Core Hits 28 | 7 . 21 Critical Kills 2 | 1 . 1 Critical Parts Destroyed . | . . . Critical Strikes 3 | 1 . 2 Destroy 3 | 1 . 2 Melee Attacks 64 | . . 64 Impact . | . . . Slashing . | . . . Piercing 64 | . . 64 Sneak Attacks 1 | . . 1 Combat Hostiles . | . . . Follow-up Attacks . | . . . Damage Inflicted 1527 | 240 . 1287 Guns 956 | 240 . 716 Cannons 269 | . . 269 Explosions . | . . . Melee 302 | . . 302 Ramming . | . . . Kinetic 646 | 83 . 563 Thermal 579 | 157 . 422 Explosive . | . . . Electromagnetic . | . . . Impact . | . . . Slashing . | . . . Piercing 302 | . . 302 Highest Corruption 1 | . 1 1 Average Corruption 1 | . 1 1 Corruption Purged . | . . . Corruption Blocked . | . . . Effects 22 | . 1 21 Message Errors 5 | . . 5 Matter Fused 2 | . . 2 Heat Flow Errors 3 | . 1 2 Energy Discharges 5 | . . 5 Parts Fused 1 | . . 1 Data Loss (minor) 1 | . . 1 Data Loss (major) 1 | . . 1 Misfires 2 | . . 2 Alerts 1 | . . 1 Weapon Failures 1 | . . 1 Overload Shots . | . . . Overflow Damage 5 | . . 5 Projectiles . | . . . Explosions . | . . . Melee 5 | . . 5 Knockbacks . | . . . Impact . | . . . Kinetic . | . . . Secondary . | . . . Self-Inflicted Damage . | . . . Shots . | . . . Rammed . | . . . Targets Rammed . | . . . Kicked . | . . . Crushed . | . . . Highest Temperature 248 | 40 167 248 Average Temperature 65 | 21 87 93 Received Heat Transfer 177 | . . 177 Siege Activations . | . . . Martial Activations . | . . . Shielding Activations . | . . . Robots Disrupted . | . . . Combat Hostiles . | . . . Robots Corrupted . | . . . Combat Hostiles . | . . . Parts Fried . | . . . Impact Corruptions . | . . . Robots Melted . | . . . Combat Hostiles . | . . . Parts Melted 3 | . . 3 Heat Transferred 920 | 350 . 570 Parts Sabotaged . | . . . Parts Stolen . | . . . Parts Stripped . | . . . Power Chain Reactions . | . . . Alert | -11 -10 -10 ------- Run | Yrd Mat Sub Maximum Alert Level . | . . . Low Security (%) 100 | 100 100 . Level 1 . | . . . Level 2 . | . . . Level 3 . | . . . Level 4 . | . . . Level 5 . | . . . High Security . | . . . Max Security . | . . . Peak Influence 10 | 10 8 . Initial . | . . . Average 1 | . 1 . Influence Increases 40 | 25 15 . Destroy 0b10 Robot/NC 25 | 25 . . Successful Hack 15 | . 15 . Influence Decreases 40 | 25 7 8 Entered New Map 4 | . . 4 Time Decay 36 | 25 7 4 Squads Dispatched 1 | . 1 . Investigation 1 | . 1 . Extermination . | . . . Reinforcement . | . . . Assault . | . . . Garrison . | . . . Intercept . | . . . Searches Triggered . | . . . Construction Impeded . | . . . Haulers Reinforced . | . . . Active Scanning Responses . | . . . Cargo Convoy Interrupts . | . . . Stealth | -11 -10 -10 --------- Run | Yrd Mat Sub Distress Signals . | . . . Communications Jammed . | . . . Distress Signals . | . . . Times Spotted 16 | . 2 14 Peak Tracking Total 3 | . 3 2 Tactical Retreats . | . . . Traps | -11 -10 -10 ------- Run | Yrd Mat Sub Traps Triggered 2 | . . 2 Indirectly . | . . . Trap Hack Attempts . | . . . Triggered . | . . . Disarmed . | . . . Reprogrammed . | . . . Reused 1 | . . 1 Traps Extracted . | . . . Installed 1 | . . 1 Triggered . | . . . Most Traps Carried 3 | . . 3 Machines | -11 -10 -10 ---------- Run | Yrd Mat Sub Machines Disabled 1 | . . 1 Max in Single Turn 1 | . . 1 Machines Repaired . | . . . Machines Dismantled . | . . . Machines Sabotaged . | . . . Overloaded Fab Kills . | . . . Hacking | -11 -10 -10 --------- Run | Yrd Mat Sub Machines Accessed 5 | . 4 1 Terminals 4 | . 4 . Fabricators . | . . . Repair Stations . | . . . Recycling Units . | . . . Scanalyzers . | . . . Garrison Access . | . . . Total Hacks 23 | . 14 9 Successful 13 | . 4 9 Failed 10 | . 10 . Catastrophic 1 | . 1 . Database Lockouts . | . . . Manual 5 | . 3 2 Terminals 14 | . 14 . Fabricators . | . . . Repair Stations . | . . . Recycling Units . | . . . Scanalyzers . | . . . Garrison Access . | . . . Terminal Hacks 13 | . 4 9 Record 8 | . . 8 Branch Access Points 1 | . 1 . Alert Level 1 | . 1 . Maintenance Status 1 | . 1 . Zone Layout 1 | . 1 . Proto ID Catalog 1 | . . 1 Fabricator Hacks . | . . . Repair Station Hacks . | . . . Recycling Unit Hacks . | . . . Scanalyzer . | . . . Garrison Access Hacks . | . . . Unauthorized Hacks . | . . . Terminals . | . . . Fabricators . | . . . Repair Stations . | . . . Recycling Units . | . . . Scanalyzers . | . . . Garrison Access . | . . . Data Cores Recovered . | . . . Used . | . . . Hacking Detections 4 | . 4 . Full Trace Events 2 | . 2 . Feedback Events 1 | . 1 . Corruption 1 | . 1 . Feedback Blocked . | . . . Robot Schematics Acquired . | . . . Robots Built . | . . . Authchips . | . . . Time . | . . . Total Robot Build Rating . | . . . Part Schematics Acquired . | . . . Parts Built . | . . . Authchips . | . . . Time . | . . . Total Part Build Rating . | . . . Part Studies Acquired . | . . . Parts Repaired . | . . . Time . | . . . Parts Recycled . | . . . Recycled Matter . | . . . Retrieved Matter . | . . . Retrieved Components . | . . . Parts Scanalyzed . | . . . Part Schematics Acquired . | . . . Parts Damaged . | . . . Bothacking | -11 -10 -10 ------------ Run | Yrd Mat Sub Used RIF Installer . | . . . Robots Hacked . | . . . Non-combat . | . . . Combat . | . . . Robot Hacks Applied . | . . . Relay Couplers Released . | . . . Fabnet Peak Effective % . | . . . Robots Rewired . | . . . Allies Hacked . | . . . Hacks Repelled . | . . . Allies | -11 -10 -10 -------- Run | Yrd Mat Sub Total Allies . | . . . Largest Group . | . . . Highest-Rated Group . | . . . Highest-Rated Ally . | . . . Total Orders . | . . . Ally Attacks . | . . . Total Damage . | . . . Kills . | . . . Allies Corrupted . | . . . Allies Melted . | . . . Intel | -11 -10 -10 ------- Run | Yrd Mat Sub Active Infowar (turns) 3212 | 97 134 2981 Optics 82 | . . 82 Sensors 1250 | . . 1250 Terrain 1838 | 55 134 1649 Seismic 42 | 42 . . Robot Analysis Total . | . . . Derelict Logs Recovered 2 | . . 2 Drone Launches . | . . . Drone Recoveries . | . . . Exploration | -11 -10 -10 ------------- Run | Yrd Mat Sub Turns Passed 3398 | 215 134 3049 Spaces Moved 2209 | 153 116 1940 Core 1 | 1 . . Treads . | . . . Legs . | . . . Wheels 2208 | 152 116 1940 Hover . | . . . Flight . | . . . Fastest Speed 50 | 50 90 105 Average Speed 125 | 89 100 129 Slowest Speed 215 | 95 135 215 Overloaded Moves . | . . . Propulsion Burnouts . | . . . Robots Hopped . | . . . Potential Cave-ins . | . . . Cave-ins Triggered . | . . . Exploration Rate (%) 36 | 6 28 75 Regions Visited 2 Branch Regions 1 Pre-discovered Areas 1 | . . 1 Known Exits Taken . | . . . Unknown Exits Taken 2 | 1 1 . Scrap Searched 4 | . . 4 Spaces Dug 47 | . . 47 Terrain Destroyed 50 | . . 50 Melee 25 | . . 25 Projectile 25 | . . 25 AOE . | . . . Terrain Rammed . | . . . Walls Destroyed . | . . . Machines Disabled . | . . . Actions | -11 -10 -10 --------- Run | Yrd Mat Sub Total 2623 | 199 134 2290 Wait 128 | 11 6 111 Move 2207 | 152 115 1940 Hop . | . . . Pick Up 50 | 10 8 32 Fast Attach 10 | 7 . 3 Attach 3 | . . 3 Detach . | . . . Swap 21 | 1 2 18 Drop 32 | 2 3 27 Fire 107 | 16 . 91 Melee 64 | . . 64 Ram . | . . . Kick . | . . . Crush . | . . . Escape Stasis . | . . . Rewire . | . . . Trap 1 | . . 1 Miscellaneous . | . . . Route ------- -11/Scrapyard -10/Materials (discovered 3 exits: [*Mat] / Min / *Sub) -10/Subcaves (discovered 1 exit: [*Mat]) History --------- Turn | Location | Event 24 | -11/Scrapyard | Discovered new exit (range 16) 216 | -11/Scrapyard | Entered Materials 217 | -10/Materials | Met a group of wandering Federalists 277 | -10/Materials | Identified exit to Mines 303 | -10/Materials | Build established: Mutant 321 | -10/Materials | Discovered new exit (range 12) 327 | -10/Materials | Lost 4 allies 347 | -10/Materials | Discovered new exit (range 5) 350 | -10/Materials | Entered Subcaves 351 | -10/Subcaves | Continued accompanying wandering Federalists (2) 351 | -10/Subcaves | Approached by a straggling Scientist 529 | -10/Subcaves | Shifting Twisted Machinery released Sub. Machine Gun 575 | -10/Subcaves | Lost 4 allies 581 | -10/Subcaves | Shifting Twisted Machinery released Barrage Gun 749 | -10/Subcaves | Build established: Scavenger-Mutant 794 | -10/Subcaves | Learned Materials terminal intel 1071 | -10/Subcaves | Shifting Twisted Machinery released Riot Gun 1076 | -10/Subcaves | Shifting Twisted Machinery released Barrage Gun 1095 | -10/Subcaves | Learned location of Zion (-6) 1536 | -10/Subcaves | Build established: Mutant 2135 | -10/Subcaves | Lost 3 parts (2n1u) 2266 | -10/Subcaves | A swath of the cavern ceiling suddenly collapsed 2292 | -10/Subcaves | Discovered new exit (range 15) 2373 | -10/Subcaves | A swath of the cavern ceiling suddenly collapsed 2762 | -10/Subcaves | Visited 4L-MR0's lab 2799 | -10/Subcaves | Found Rainbow Chip 3378 | -10/Subcaves | Disturbed a concealed Subdweller 3380 | -10/Subcaves | Core integrity fell below 50% 3382 | -10/Subcaves | Disturbed a concealed Subdweller 3391 | -10/Subcaves | Core integrity fell below 20% 3399 | -10/Subcaves | Destroyed by B7-6G6(R) with Subdweller Beam Cannon Last Messages --------------- 02910_ System corrupted: IFF burst signal emitted. 03071_ IIC,0YGDE|P0S7U